Cogmind - Beta 14 @@@ ROGUE MODE // 2024.11.24 @ 12:00:28 Player: Fangrelle Result: Self-destructed Performance ------------- Evolutions (0) 0 Regions Visited (4) 800 Robots Destroyed (22) 110 Value Destroyed (369) 369 Prototype IDs (23) 460 Alien Tech Used (0) 0 Bonus (21) 21 TOTAL SCORE: 1760 Bonus ------- Follower Combat Kills 21 Cogmind --------- Core Integrity 65/250 Matter 300/300 Energy 100/100 System Corruption 0% Temperature Cool (0) Movement Treading (465) Ox4 Location -9/Mines Parts ------- > --- POWER (1) -------- (None) > --- PROPULSION (2) --- Advanced Treads Advanced Treads > --- UTILITY (2) ------ Humpback > --- WEAPON (2) ------- Light Cannon Grenade Launcher > --- INVENTORY (35) --- Cooling System Cooling System High-capacity Storage Unit Huge Storage Unit High-capacity Battery (250) High-capacity Matter Pod (200) High-capacity Matter Pod (200) Experimental Sensor Array Makeshift Transmission Jammer Improved Propulsion Shielding Light Armor Plating Light Armor Plating Light Armor Plating Light Armor Plating Hardened Light Armor Plating Hardened Light Armor Plating Hardened Light Armor Plating Hardened Light Armor Plating Makeshift Hacking Suite Tractor Beam PSU Rigger EM Pulse Gun Light EM Pulse Cannon Heavy Assault Rifle Heavy Assault Rifle Heavy Assault Rifle Minigun Gauss Rifle Grenade Launcher Grenade Launcher Rocket Launcher Improved Datajack Heavy Explosive Trap Heavy Explosive Trap Heavy Explosive Trap Peak State ------------ > --- POWER ------------ Ion Engine > --- PROPULSION ------- Advanced Treads Advanced Treads > --- UTILITY ---------- Humpback > --- WEAPON ----------- Light EM Pulse Cannon Minigun > --- INVENTORY -------- Cooling System Cooling System High-capacity Storage Unit Huge Storage Unit High-capacity Battery High-capacity Matter Pod High-capacity Matter Pod Experimental Sensor Array Makeshift Transmission Jammer Improved Propulsion Shielding Light Armor Plating Light Armor Plating Light Armor Plating Light Armor Plating Hardened Light Armor Plating Hardened Light Armor Plating Hardened Light Armor Plating Hardened Light Armor Plating Makeshift Hacking Suite Tractor Beam PSU Rigger EM Pulse Gun Heavy Assault Rifle Heavy Assault Rifle Heavy Assault Rifle Gauss Rifle Light Cannon Grenade Launcher Grenade Launcher Grenade Launcher Grenade Launcher Improved Datajack [Rating: 21] Favorites ----------- Power Ion Engine Engine Ion Engine Propulsion Advanced Treads Treads Advanced Treads Leg Aluminum Leg Utility Humpback Device Tractor Beam Storage Humpback Protection Hardened Light Armor Plating Weapon Heavy Assault Rifle Energy Gun EM Pulse Gun Energy Cannon Light EM Pulse Cannon Ballistic Gun Heavy Assault Rifle Ballistic Cannon Light Cannon Launcher Grenade Launcher Build | -11 -10 -10 -10 -9 ------- Run | Yrd Mat Min Exi Min Slots Evolved . | . . . . . Power . | . . . . . Propulsion . | . . . . . Utility . | . . . . . Weapon . | . . . . . Parts Attached 20 | 1 9 3 3 4 Power 1 | . 1 . . . Engine 1 | . 1 . . . Core . | . . . . . Reactor . | . . . . . Propulsion 4 | . 2 2 . . Treads 4 | . 2 2 . . Leg . | . . . . . Wheel . | . . . . . Hover . | . . . . . Flight . | . . . . . Utility 6 | 1 4 . 1 . Device 1 | 1 . . . . Storage 3 | . 2 . 1 . Processor . | . . . . . Hackware . | . . . . . Protection 2 | . 2 . . . Artifact . | . . . . . Weapon 9 | . 2 1 2 4 Energy Gun . | . . . . . Energy Cannon 2 | . . . 2 . Ballistic Gun 4 | . 2 1 . 1 Ballistic Cannon 1 | . . . . 1 Launcher 2 | . . . . 2 Special Weapon . | . . . . . Impact Weapon . | . . . . . Slashing Weapon . | . . . . . Piercing Weapon . | . . . . . Special Melee Weapon . | . . . . . Unidentified Prototypes . | . . . . . Parts Lost 2 | . . . . 2 Power 1 | . . . . 1 Propulsion . | . . . . . Utility . | . . . . . Weapon 1 | . . . . 1 Highest Loss Streak 2 | . . . . 2 To Critical Strikes . | . . . . . Average Slot Usage (%) 89 | . 99 99 89 77 Engine 11 | . 14 14 14 6 Treads 27 | . 28 27 28 28 Storage 13 | . 14 14 13 14 Protection 5 | . 10 14 4 . Energy Gun 1 | . 8 . . . Energy Cannon 5 | . . . 3 13 Ballistic Gun 16 | . 18 28 24 . Ballistic Cannon 1 | . . . . 6 Launcher 2 | . . . . 8 Peak Build Rating 21 | 7 13 18 20 21 Average Rating 16 | 6 9 13 18 18 On Entrance 12 | 6 7 13 18 19 Naked Turns . | . . . . . Heaviest Build 213 | 13 96 96 213 213 Greatest Support 44 | 20 40 44 44 44 Greatest Overweight (x) 4 | . 2 4 4 4 Average Overweight (x) 2 | . 1 2 2 4 Largest Inventory Capacity 35 | 8 25 25 35 35 Average Capacity 29 | 8 20 25 31 35 Most Carried 35 | 6 25 25 32 35 Average Carried 25 | 6 15 24 26 32 Final Capacity 35 | 8 25 25 35 35 Final Carried 35 | 6 25 25 32 35 Class Distribution -------------------- 53% | Hauler-Mutant 46% | Mutant Dominant Class ---------------- Mutant | -10/Materials Mutant | -10/Mines Hauler-Mutant | -10/Exiles Hauler-Mutant | -9/Mines Resources | -11 -10 -10 -10 -9 ----------- Run | Yrd Mat Min Exi Min Matter Collected 1244 | 252 387 . 212 393 Remotely 209 | 10 199 . . . Salvage Created 851 | 88 574 . 59 130 Parts 38 | 2 30 . 3 3 Haulers Intercepted 1 | . 1 . . . Recyclers Shooed . | . . . . . Parts Field Recycled . | . . . . . Retrieved Matter . | . . . . . Parts Self-Destructed . | . . . . . Prevented . | . . . . . Kills | -11 -10 -10 -10 -9 ------- Run | Yrd Mat Min Exi Min Combat Hostiles Destroyed 30 | . 10 . . 20 Guns 8 | . 8 . . . Cannons 4 | . . . . 4 AOE 18 | . 2 . . 16 Classes Destroyed 10 | 2 5 . . 3 Worker 1 | . 1 . . . Builder 1 | . . . . 1 Tunneler 1 | 1 . . . . Hauler 1 | . 1 . . . Recycler 4 | 1 2 . . 1 Watcher 3 | . 3 . . . Swarmer 6 | . 6 . . . Grunt 4 | . 4 . . . Demolisher 1 | . . . . 1 Assembled 19 | . . . . 19 Best Kill Streak 15 | 1 4 . . 15 Combat Bots Only 15 | . 3 . . 15 Max Kills in Single Turn 4 | 1 2 . . 4 Gunslinging . | . . . . . Exploded 4 | . 1 . . 4 Melee . | . . . . . Uniques/NPCs Destroyed . | . . . . . Combat | -11 -10 -10 -10 -9 -------- Run | Yrd Mat Min Exi Min Hostile Shots Fired 94 | . 54 . . 40 Missed 31 | . 20 . . 11 Damage Taken 1187 | . 373 . . 814 Core 185 | . 53 . . 132 Absorbed by Shields . | . . . . . Core Remaining (%) 100 | 100 . . . . Volleys Fired 95 | 14 51 . 3 27 Largest 2 | 2 2 . 2 2 Hottest 112 | 60 60 . 112 112 Shots Fired 186 | 28 102 . 6 50 Gun 132 | 28 102 . . 2 Cannon 22 | . . . 6 16 Launcher 32 | . . . . 32 Special . | . . . . . Kinetic 81 | 14 57 . . 10 Thermal . | . . . . . Explosive 32 | . . . . 32 Electromagnetic 73 | 14 45 . 6 8 Robot Hit Streak 9 | 3 9 . 6 6 Robot Miss Streak 8 | 3 8 . . 2 Penetration Max . | . . . . . Secondary Targets 2 | . 2 . . . Max Gunslinging Chain 1 | . 1 . . . Shots Hit Robots 92 | 11 58 . 5 18 Core Hits 70 | 3 19 . 1 47 Critical Kills 1 | . 1 . . . Critical Parts Destroyed . | . . . . . Critical Strikes 2 | . 1 . . 1 Destroy 1 | . 1 . . . Corrupt 1 | . . . . 1 Melee Attacks . | . . . . . Impact . | . . . . . Slashing . | . . . . . Piercing . | . . . . . Sneak Attacks . | . . . . . Combat Hostiles . | . . . . . Follow-up Attacks . | . . . . . Damage Inflicted 2520 | 144 1013 . 118 1245 Guns 986 | 144 809 . . 33 Cannons 335 | . . . 118 217 Explosions 1178 | . 204 . . 974 Melee . | . . . . . Ramming 21 | . . . . 21 Kinetic 689 | 77 475 . . 137 Thermal 204 | . 204 . . . Explosive 974 | . . . . 974 Electromagnetic 632 | 67 334 . 118 113 Impact . | . . . . . Slashing . | . . . . . Piercing . | . . . . . Highest Corruption . | . . . . . Average Corruption . | . . . . . Corruption Purged . | . . . . . Corruption Blocked . | . . . . . Overload Shots . | . . . . . Overflow Damage 48 | . 20 . . 28 Projectiles . | . . . . . Explosions 48 | . 20 . . 28 Melee . | . . . . . Knockbacks . | . . . . . Impact . | . . . . . Kinetic . | . . . . . Secondary . | . . . . . Self-Inflicted Damage 100 | . 39 . . 61 Shots 3 | . 1 . . 2 Rammed 1 | . . . . 1 Targets Rammed 1 | . . . . 1 Kicked . | . . . . . Crushed . | . . . . . Highest Temperature 193 | 20 117 . 153 193 Average Temperature 49 | 20 41 . 80 109 Received Heat Transfer 117 | . 117 . . . Siege Activations . | . . . . . Robots Corrupted . | . . . . . Combat Hostiles . | . . . . . Parts Fried 5 | . 4 . 1 . Impact Corruptions . | . . . . . Robots Melted . | . . . . . Combat Hostiles . | . . . . . Parts Melted . | . . . . . Heat Transferred 250 | . 250 . . . Parts Sabotaged . | . . . . . Parts Stolen . | . . . . . Parts Stripped . | . . . . . Power Chain Reactions 4 | . 4 . . . Alert | -11 -10 -10 -10 -9 ------- Run | Yrd Mat Min Exi Min Peak Influence 237 | 10 237 46 . 94 Initial 46 | . 6 46 . . Average 49 | 5 112 17 . 16 Maximum Alert Level 1 | . 1 . . . Low Security (%) 93 | 100 81 100 . 100 Level 1 6 | . 18 . . . Level 2 . | . . . . . Level 3 . | . . . . . Level 4 . | . . . . . Level 5 . | . . . . . High Security . | . . . . . Max Security . | . . . . . Squads Dispatched 3 | . 2 1 . . Investigation 3 | . 2 1 . . Extermination . | . . . . . Reinforcement . | . . . . . Assault . | . . . . . Garrison . | . . . . . Intercept . | . . . . . Searches Triggered . | . . . . . Construction Impeded . | . . . . . Haulers Reinforced . | . . . . . Active Scanning Responses . | . . . . . Cargo Convoy Interrupts . | . . . . . Stealth | -11 -10 -10 -10 -9 --------- Run | Yrd Mat Min Exi Min Distress Signals 3 | . 3 . . . Communications Jammed . | . . . . . Distress Signals . | . . . . . Times Spotted 37 | . 15 . . 22 Peak Tracking Total 12 | . 5 . . 12 Tactical Retreats 4 | . 2 . . 2 Traps | -11 -10 -10 -10 -9 ------- Run | Yrd Mat Min Exi Min Traps Triggered . | . . . . . Indirectly . | . . . . . Trap Hack Attempts . | . . . . . Triggered . | . . . . . Disarmed . | . . . . . Reprogrammed . | . . . . . Reused . | . . . . . Traps Extracted . | . . . . . Installed . | . . . . . Triggered . | . . . . . Most Traps Carried 2 | . . . . 2 Machines | -11 -10 -10 -10 -9 ---------- Run | Yrd Mat Min Exi Min Machines Disabled 2 | . 2 . . . Max in Single Turn 1 | . 1 . . . Machines Repaired . | . . . . . Machines Dismantled . | . . . . . Machines Sabotaged . | . . . . . Overloaded Fab Kills . | . . . . . Hacking | -11 -10 -10 -10 -9 --------- Run | Yrd Mat Min Exi Min Machines Accessed 11 | . 8 1 2 . Terminals 6 | . 6 . . . Fabricators . | . . . . . Repair Stations . | . . . . . Recycling Units 2 | . 2 . . . Scanalyzers . | . . . . . Garrison Access . | . . . . . Total Hacks 25 | . 19 1 5 . Successful 15 | . 9 1 5 . Failed 10 | . 10 . . . Catastrophic 1 | . 1 . . . Database Lockouts . | . . . . . Manual 17 | . 15 . 2 . Terminals 14 | . 14 . . . Fabricators . | . . . . . Repair Stations . | . . . . . Recycling Units 5 | . 5 . . . Scanalyzers . | . . . . . Garrison Access . | . . . . . Terminal Hacks 7 | . 1 1 5 . Record 4 | . . . 4 . Robot Analysis 1 | . 1 . . . Open Door 1 | . . 1 . . Derelict Proto ID Bank 1 | . . . 1 . Fabricator Hacks . | . . . . . Repair Station Hacks . | . . . . . Recycling Unit Hacks 1 | . 1 . . . Retrieve Components 1 | . 1 . . . Scanalyzer . | . . . . . Garrison Access Hacks . | . . . . . Unauthorized Hacks 7 | . 7 . . . Terminals 5 | . 5 . . . Botnet 4 | . 4 . . . Operators 1 | . 1 . . . Fabricators . | . . . . . Repair Stations . | . . . . . Recycling Units 2 | . 2 . . . Tunnel 2 | . 2 . . . Scanalyzers . | . . . . . Garrison Access . | . . . . . Data Cores Recovered . | . . . . . Used . | . . . . . Hacking Detections 7 | . 7 . . . Full Trace Events . | . . . . . Feedback Events . | . . . . . Feedback Blocked . | . . . . . Robot Schematics Acquired . | . . . . . Robots Built . | . . . . . Authchips . | . . . . . Time . | . . . . . Total Robot Build Rating . | . . . . . Part Schematics Acquired . | . . . . . Parts Built . | . . . . . Authchips . | . . . . . Time . | . . . . . Total Part Build Rating . | . . . . . Parts Repaired . | . . . . . Time . | . . . . . Parts Recycled . | . . . . . Recycled Matter . | . . . . . Retrieved Matter . | . . . . . Retrieved Components 10 | . 10 . . . Parts Scanalyzed . | . . . . . Part Schematics Acquired . | . . . . . Parts Damaged . | . . . . . Bothacking | -11 -10 -10 -10 -9 ------------ Run | Yrd Mat Min Exi Min Used RIF Installer . | . . . . . Robots Hacked . | . . . . . Non-combat . | . . . . . Combat . | . . . . . Robot Hacks Applied . | . . . . . Relay Couplers Released . | . . . . . Fabnet Peak Effective % . | . . . . . Robots Rewired 3 | . . . 3 . Allies Hacked . | . . . . . Hacks Repelled . | . . . . . Allies | -11 -10 -10 -10 -9 -------- Run | Yrd Mat Min Exi Min Total Allies 6 | . . . 3 3 Largest Group 6 | . . . 3 6 Highest-Rated Group 77 | . . . 37 77 Highest-Rated Ally 21 | . . . 21 21 Total Orders 2 | . . . 2 . STAY 1 | . . . 1 . FOLLOW 1 | . . . 1 . Ally Attacks 10 | . . . . 10 Total Damage 92 | . . . . 92 Kills 3 | . . . . 3 Allies Corrupted . | . . . . . Allies Melted . | . . . . . Intel | -11 -10 -10 -10 -9 ------- Run | Yrd Mat Min Exi Min Robot Analysis Total 1 | . 1 . . . Derelict Logs Recovered 3 | . . 1 . 2 Drone Launches . | . . . . . Drone Recoveries . | . . . . . Exploration | -11 -10 -10 -10 -9 ------------- Run | Yrd Mat Min Exi Min Turns Passed 9181 | 55 1917 1055 3518 2636 Spaces Moved 2391 | 10 612 329 893 547 Core . | . . . . . Treads 2381 | . 612 329 893 547 Legs 10 | 10 . . . . Wheels . | . . . . . Hover . | . . . . . Flight . | . . . . . Fastest Speed 120 | 120 160 305 145 465 Average Speed 358 | 120 252 318 383 465 Slowest Speed 465 | 120 320 465 465 465 Overloaded Moves . | . . . . . Propulsion Burnouts . | . . . . . Robots Hopped . | . . . . . Cave-ins Triggered . | . . . . . Exploration Rate (%) 65 | 2 87 64 89 84 Regions Visited 4 Branch Regions 3 Pre-discovered Areas 5 | . 2 1 1 1 Known Exits Taken . | . . . . . Unknown Exits Taken 4 | 1 1 1 1 . Scrap Searched . | . . . . . Spaces Dug . | . . . . . Terrain Destroyed 151 | . 9 . . 142 Melee . | . . . . . Projectile . | . . . . . AOE 151 | . 9 . . 142 Terrain Rammed . | . . . . . Walls Destroyed . | . . . . . Machines Disabled . | . . . . . Actions | -11 -10 -10 -10 -9 --------- Run | Yrd Mat Min Exi Min Total 2830 | 24 892 338 991 585 Wait 175 | . 175 . . . Move 2387 | 9 611 328 892 547 Hop . | . . . . . Pick Up 68 | . 29 2 32 5 Fast Attach 8 | 1 3 3 1 . Attach 3 | . 2 . . 1 Detach 1 | . 1 . . . Swap 9 | . 4 . 2 3 Drop 34 | . 16 5 12 1 Fire 95 | 14 51 . 3 27 Melee . | . . . . . Ram . | . . . . . Kick . | . . . . . Crush 1 | . . . . 1 Escape Stasis . | . . . . . Rewire 49 | . . . 49 . Trap . | . . . . . Miscellaneous . | . . . . . Route ------- -11/Scrapyard -10/Materials (discovered 4 exits: [*Mat x3] / *Min) -10/Mines (discovered 2 exits: [*Mat] / *Exi) -10/Exiles -9/Mines (discovered 2 exits: *Mat x2) History --------- Turn | Location | Event 44 | -11/Scrapyard | Discovered new exit (range 3) 56 | -11/Scrapyard | Entered Materials 303 | -10/Materials | Build established: Mutant 643 | -10/Materials | Discovered new exit (range 16) 921 | -10/Materials | Discovered new exit (range 10) 1568 | -10/Materials | Discovered new exit (range 8) 1689 | -10/Materials | Discovered new exit (range 16) 1973 | -10/Materials | Entered Mines 2255 | -10/Mines | Discovered new exit (range 8) 2441 | -10/Mines | Learned location of Zion (-7) 2629 | -10/Mines | Deemed a non-threat by the Exiles lab entrance 2629 | -10/Mines | Discovered new exit (range 5) 2784 | -10/Mines | Met a Derelict shopkeep closing up shop 3028 | -10/Mines | Entered Exiles 3028 | -10/Exiles | Found Exiles lab destroyed 3358 | -10/Exiles | Opened EX-Vault 3374 | -10/Exiles | Found PSU Rigger 4589 | -10/Exiles | Build established: Hauler-Mutant 6490 | -10/Exiles | Discovered new exit (range 10) 6546 | -10/Exiles | Entered Mines 6546 | -9/Mines | Accompanied by 3 allies 6844 | -9/Mines | Identified exit to Materials 6932 | -9/Mines | Found a damaged Exp. Sensor Array with a note attached 6942 | -9/Mines | Found Prototype Device 7161 | -9/Mines | Assisted by bots powering up and referring to "LRC-V3" 7767 | -9/Mines | Assembled infested the area 7823 | -9/Mines | Core integrity fell below 50% 7827 | -9/Mines | Lost 6 allies 7877 | -9/Mines | Destroyed 15 combat bots 8243 | -9/Mines | Received a Rocket Launcher from a helpful Derelict 8372 | -9/Mines | Discovered exit to Materials (range 11) 9100 | -9/Mines | Found a hidden stash of uninstalled traps 9182 | -9/Mines | Self-destructed Last Messages --------------- 08696_ R-06 Scavenger collects Structural Scanner. 08725_ K-01 Serf collects debris. 08728_ Acquired 12 matter. 08728_ U-05 Engineer builds a Wall. 08732_ Slammed into R-06 Scavenger. 08733_ Acquired 107 matter. 08756_ Acquired 55 matter. 08757_ U-05 Engineer builds a Wall. 08760_ Acquired 7 matter. 08761_ K-01 Serf collects debris. 08766_ U-05 Engineer builds a Wall. 08787_ K-01 Serf collects debris. 08830_ Acquired 29 matter. 09004_ R-06 Scavenger collects Mining Laser. 09007_ R-06 Scavenger collects Lgt. Ion Engine. 09100_ A stash of uninstalled traps is collected here! 09109_ Acquired Heavy Explosive Trap. 09134_ K-01 Serf collects debris. 09153_ Dropped Grenade Launcher. 09181_ Acquired Heavy Explosive Trap. Map ----- +----------------------------------------------------+ | ???????????????????????????? | | ??????####????#########????? | | ????### ###### ##???? | | ???## """ ##??? | | ???# """ #??? | | ???# ###### """ #### | | ???# ##????# # | | ???# ##????# ### # | | ??## ##???## ######?# # | | ??# #########??????# # | | ??# * #?????????# # | | ??## !### #?????????# # | | ???## ##?#!#?????????# # | | ????# ##??#=#?????????# # | | ????# ###???#%#?????????# | | ????# #?????#*#?????####### | | ????# #?????#!####### ##? | | ????# #?????# ## | | ????# #???### # | | ????# #??# ###### | | ????# ### #????# | | ???## ## #?????## % | | ??## ] #??????##### | | ??# #??????????## | | ??# ##???????????# | | ??#@ ##???????????## | | ??# ###????????????# | | ??## ##??????????????# | | ???#####???????????????## | | ????????????????????????## | | ?????????????????????????# | | ????????????????????????## | | ??????????????????????### | | ?????????????????????## # | | ????????????????????## ## | | ????????????????????# ##? | | ????????????????????# #?? | | ????????????????????# ##? | | ????????????????????# =%## | | ????????????????????# =!=%[ | | ????????????????????## *==! | | ?????????????????????## !** | | ??????????????????????## | | ???????????????????????## | | ????????????????????????# | | ????????????????????????# ! | | ????????????????????????# % | | ????????????????????????# | | ????????????????????????## | | ?????????????????????????## | +----------------------------------------------------+ Best States ------------- Heat Dissipation 25 Energy Generation 10 Energy Capacity 250 Matter Stores 300 Matter Capacity 300 Sight Range 16 Terrain Scan Density 10 Armor Coverage 150 Evasion (%) 50 Recoil Reduction 2 Item Schematics ----------------- None Robot Schematics ------------------ None Fabricated ------------ Nothing Alien Tech Used ----------------- None Achievements -------------- None Challenges ------------ None Game ------ Seed MiniSmallLattice Manual? 0 Play Time 00:18:42 Cumulative 131.8 hours Start 2024.11.24 @ 11:43:13 End 2024.11.24 @ 12:00:28 Sessions 1 Manual Loads 0 Difficulty Rogue Special Mode None Game No. 247 Rogue 247 Adventurer 0 Explorer 0 Win Type - Total 0 Types 0/0/0/0/0/0/0/0/0 Lore% 43 Gallery% 40 Achievement% 36 Wizard Run 0 Options --------- Layout 0 ASCII 0 Keyboard 0 Movement Mouse Keybinds 0 Fullscreen 1 Font 24/Smallcaps Map View 91x25 Zoom Use 95% Tactical HUD 1 Map Filters NONE Filters NONE Steam 1 RUN: 8ef9bf87-3eb6-4e0c-a5dd-a8370998e5b7